fUSD/lending_fUSD_20250507
["ID","MTS","AMOUNT","RATE_DAILY","PERIOD"]
[360160837,1746582665308,-1537.94,0.00019642,2]
[360160838,1746582665319,-450.0,0.00019642,2]
[360160839,1746582665328,-450.0,0.00019642,2]
[360160840,1746582665338,-450.0,0.00019642,2]
[360160841,1746582665349,-963.33,0.00019642,2]
[360160842,1746582665360,-2217.43,0.00019642,2]
[360160843,1746582665369,-450.0,0.00019642,2]
[360160844,1746582665379,-451.06234275,0.00019643,2]
[360160845,1746582665389,-450.0,0.00019643,2]
[360160846,1746582665398,-450.0,0.00019643,2]
[360160847,1746582665409,-617.25,0.00019643,2]
[360160848,1746582665418,-450.0,0.00019643,2]
[360160849,1746582665427,-646.35,0.00019643,2]
[360160850,1746582665436,-287.57967081,0.00019643,2]
[360160851,1746582665445,-644.54,0.00019643,2]
[360160852,1746582665454,-450.0,0.00019643,2]
[360160853,1746582665463,-450.0,0.00019643,2]
[360160854,1746582665472,-789.68,0.00019643,2]
[360160855,1746582665481,-169.56993247,0.00019643,2]
[360160856,1746582665490,-360.10346176,0.00019643,2]
[360160857,1746582665498,-817.16,0.00019643,2]
[360160858,1746582665507,-445.71821688,0.00019643,2]
[360160859,1746582665516,-478.69870336,0.00019643,2]
[360160860,1746582665525,-677.07,0.00019643,2]
[360160861,1746582665534,-318.71779271,0.00019643,2]
[360160862,1746582665543,-465.82386086,0.00019643,2]
[360160863,1746582665552,-450.0,0.00019643,2]
[360160864,1746582665561,-450.0,0.00019643,2]
[360160865,1746582665570,-450.0,0.00019643,2]
[360160866,1746582665579,-450.0,0.00019643,2]
[360160867,1746582665588,-1409.65,0.00019643,2]
[360160868,1746582665596,-450.0,0.00019643,2]
[360160869,1746582665605,-881.57,0.00019643,2]
[360160870,1746582665614,-450.0,0.00019643,2]
[360160871,1746582665623,-1672.88,0.00019643,2]
[360160872,1746582665632,-1766.43,0.00019643,2]
[360160873,1746582665641,-975.48,0.00019643,2]
[360160874,1746582665650,-1002.06,0.00019643,2]
[360160875,1746582665659,-542.94288865,0.00019643,2]
[360160876,1746582665668,-1048.2,0.00019643,2]
[360160877,1746582665677,-526.92,0.00019643,2]
[360160878,1746582665686,-450.0,0.00019643,2]
[360160879,1746582665695,-297.102895,0.00019643,2]
[360160880,1746582665705,-297.102895,0.00019643,2]
[360160881,1746582665713,-508.95,0.00019643,2]
[360160882,1746582665723,-616.7,0.00019643,2]
[360160883,1746582665732,-2244.33,0.00019643,2]
[360160884,1746582665741,-529.11,0.00019643,2]
[360160885,1746582665750,-450.0,0.00019643,2]
[360160886,1746582665760,-26323.0,0.00019644,2]
[360160887,1746582665768,-177.0,0.00019644,2]
[360160888,1746582665778,-151.0,0.00019644,2]
[360160889,1746582665787,-382.878827,0.00019644,2]
[360160890,1746582665796,-382.878827,0.00019644,2]
[360160891,1746582665805,-151.0,0.00019654,2]
[360160892,1746582665814,-10461.4291473,0.00019654,2]
[360160893,1746582665823,-151.0,0.00019654,2]
[360160894,1746582665832,-450.0,0.00019657,2]
[360160895,1746582665841,-508.49,0.00019657,2]
[360160896,1746582665850,-1030.49,0.00019657,2]
[360160897,1746582665859,-1989.46,0.00019657,2]
[360160898,1746582665868,-546.87230505,0.00019657,2]
[360160899,1746582665877,-450.0,0.00019657,2]
[360160900,1746582665886,-450.0,0.00019657,2]
[360160901,1746582665895,-500.0,0.00019658,2]
[360160902,1746582665904,-450.0,0.00019658,2]
[360160903,1746582665913,-484.99,0.00019658,2]
[360160904,1746582665922,-450.0,0.00019658,2]
[360160905,1746582665931,-450.0,0.00019658,2]
[360160906,1746582665941,-482.81,0.00019658,2]
[360160907,1746582665950,-450.0,0.00019658,2]
[360160908,1746582665959,-450.0,0.00019658,2]
[360160909,1746582665968,-557.85,0.00019658,2]
[360160910,1746582665978,-450.0,0.00019658,2]
[360160911,1746582665986,-541.5,0.00019658,2]
[360160912,1746582665995,-489.23,0.00019658,2]
[360160913,1746582666005,-450.0,0.00019658,2]
[360160914,1746582666014,-450.0,0.00019658,2]
[360160915,1746582666024,-450.0,0.00019658,2]
[360160916,1746582666033,-450.0,0.00019658,2]
[360160917,1746582666043,-521.46,0.00019658,2]
[360160918,1746582666052,-450.0,0.00019658,2]
[360160919,1746582666061,-450.0,0.00019658,2]
[360160920,1746582666070,-450.0,0.00019658,2]
[360160921,1746582666079,-450.0,0.00019658,2]
[360160922,1746582666089,-949.38,0.00019658,2]
[360160923,1746582666098,-920.95,0.00019658,2]
[360160924,1746582666107,-922.18,0.00019658,2]
[360160925,1746582666116,-450.0,0.00019658,2]
[360160926,1746582666125,-450.0,0.00019658,2]
[360160927,1746582666134,-1013.85,0.00019658,2]
[360160928,1746582666143,-710.81,0.00019658,2]
[360160929,1746582666152,-674.99,0.00019658,2]
[360160930,1746582666161,-315.12010475,0.00019658,2]
[360160931,1746582666170,-1240.98,0.00019658,2]
[360160932,1746582666179,-622.67,0.00019658,2]
[360160933,1746582666188,-450.0,0.00019658,2]
[360160934,1746582666197,-989.98,0.00019658,2]
[360160935,1746582666206,-2065.68,0.00019658,2]
[360160936,1746582666215,-1558.39,0.00019658,2]
[360160937,1746582666224,-450.0,0.00019658,2]
[360160938,1746582666233,-469.15,0.00019658,2]
[360160939,1746582666243,-515.51,0.00019658,2]
[360160940,1746582666252,-450.0,0.00019658,2]
[360160941,1746582666261,-1702.78,0.00019658,2]
[360160942,1746582666271,-2037.93,0.00019658,2]
[360160943,1746582666284,-739.06,0.00019658,2]
[360160944,1746582666293,-788.8,0.00019658,2]
[360160945,1746582666302,-450.0,0.00019658,2]
[360160946,1746582666311,-2061.48,0.00019658,2]
[360160947,1746582666321,-1195.37,0.00019658,2]
[360160948,1746582666330,-1574.72,0.00019658,2]
[360160949,1746582666339,-1618.6,0.00019658,2]
[360160950,1746582666348,-1065.09,0.00019658,2]
[360160951,1746582666358,-2046.98,0.00019658,2]
[360160952,1746582666367,-450.0,0.00019658,2]
[360160953,1746582666376,-216.32737959,0.00019658,2]
[360160954,1746582666386,-1520.3,0.00019658,2]
[360160955,1746582666395,-558.85,0.00019658,2]
[360160956,1746582666404,-1226.66,0.00019658,2]
[360160957,1746582666413,-2012.41,0.00019658,2]
[360160958,1746582666421,-451.33,0.00019658,2]
[360160959,1746582666430,-685.61,0.00019658,2]
[360160960,1746582666439,-312.147462,0.00019658,2]
[360160961,1746582666448,-450.0,0.00019658,2]
[360160962,1746582666457,-1348.17,0.00019658,2]
[360160963,1746582666466,-576.25,0.00019658,2]
[360160964,1746582666475,-312.147462,0.00019658,2]
[360160965,1746582666484,-2072.07,0.00019658,2]
[360160966,1746582666493,-450.0,0.00019658,2]
[360160967,1746582666501,-515.77,0.00019658,2]
[360160968,1746582666511,-936.67,0.00019658,2]
[360160969,1746582666521,-667.95,0.00019658,2]
[360160970,1746582666530,-673.81,0.00019658,2]
[360160971,1746582666540,-656.57,0.00019658,2]
[360160972,1746582666550,-450.0,0.00019658,2]
[360160973,1746582666559,-508.49,0.00019658,2]
[360160974,1746582666568,-4584.07,0.00019658,2]
[360160975,1746582666577,-450.0,0.00019658,2]
[360160976,1746582666587,-35302.81,0.00019658,2]
[360160977,1746582666595,-44752.6,0.00019658,2]
[360160978,1746582666604,-677.89,0.00019658,2]
[360160979,1746582666613,-450.0,0.00019658,2]
[360160980,1746582666622,-843.02,0.00019658,2]
[360160981,1746582666631,-2170.86,0.00019658,2]
[360160982,1746582666640,-524.86,0.00019658,2]
[360160983,1746582666648,-1030.49,0.00019658,2]
[360160984,1746582666657,-450.0,0.00019658,2]
[360160985,1746582666666,-934.11,0.00019658,2]
[360160986,1746582666675,-450.0,0.00019658,2]
[360160987,1746582666684,-482.43,0.00019658,2]
[360160988,1746582666693,-450.0,0.00019658,2]
[360160989,1746582666702,-450.0,0.00019658,2]
[360160990,1746582666711,-2715.06,0.00019658,2]
[360160991,1746582666719,-609.91,0.00019658,2]
[360160992,1746582666728,-1788.55,0.00019658,2]
[360160993,1746582666737,-1989.46,0.00019658,2]
[360160994,1746582666746,-9938.79,0.00019658,2]
[360160995,1746582666755,-663.6,0.00019658,2]
[360160996,1746582666764,-1456.88,0.00019658,2]
[360160997,1746582666773,-1537.94,0.00019658,2]
[360160998,1746582666782,-1747.78,0.00019658,2]
[360160999,1746582666791,-876.67,0.00019658,2]
[360161000,1746582666800,-450.0,0.00019658,2]
[360161001,1746582666809,-450.0,0.00019658,2]
[360161002,1746582666818,-450.0,0.00019658,2]
[360161003,1746582666827,-1462.7,0.00019658,2]
[360161004,1746582666836,-477.17,0.00019658,2]
[360161005,1746582666845,-1344.99,0.00019658,2]
[360161006,1746582666854,-501.92,0.00019658,2]
[360161007,1746582666863,-450.0,0.00019658,2]
[360161008,1746582666873,-1595.73,0.00019658,2]
[360161009,1746582666882,-450.0,0.00019658,2]
[360161010,1746582666891,-450.0,0.00019658,2]
[360161011,1746582666901,-6881.51,0.00019658,2]
[360161012,1746582666910,-450.0,0.00019658,2]
[360161013,1746582666920,-450.0,0.00019658,2]
[360161014,1746582666930,-450.0,0.00019658,2]
[360161015,1746582666941,-450.0,0.00019658,2]
[360161016,1746582666950,-772.13,0.00019658,2]
[360161017,1746582666958,-748.28,0.00019658,2]
[360161018,1746582666969,-450.0,0.00019658,2]
[360161019,1746582666978,-810.66,0.00019658,2]
[360161020,1746582666988,-450.0,0.00019658,2]
[360161021,1746582666997,-569.47,0.00019658,2]
[360161022,1746582667005,-963.33,0.00019658,2]
[360161023,1746582667014,-450.0,0.00019658,2]
[360161024,1746582667023,-2931.97,0.00019658,2]
[360161025,1746582667032,-685.58,0.00019658,2]
[360161026,1746582667041,-450.0,0.00019658,2]
[360161027,1746582667050,-450.0,0.00019658,2]
[360161028,1746582667059,-2217.43,0.00019658,2]
[360161029,1746582667068,-2407.57,0.00019658,2]
[360161030,1746582667077,-450.0,0.00019658,2]
[360161031,1746582667086,-798.81,0.00019658,2]
[360161032,1746582667096,-450.0,0.00019658,2]
[360161033,1746582667105,-500.0,0.00019658,2]
[360161034,1746582667114,-457.79,0.00019658,2]
[360161035,1746582667123,-387.357687,0.00019659,2]
[360161036,1746582667133,-231.371914,0.00019659,2]
[360161037,1746582667142,-387.357687,0.00019659,2]
[360161038,1746582667152,-231.371914,0.00019659,2]
[360161039,1746582667160,-151.0,0.00019659,2]
[360161040,1746582667169,-151.0,0.00019659,2]
[360161041,1746582667179,-151.0,0.00019659,2]
[360161042,1746582667188,-151.0,0.00019659,2]
[360161043,1746582667197,-151.0,0.00019659,2]
[360161044,1746582667207,-151.0,0.00019659,2]
[360161045,1746582667216,-198.361631,0.00019659,2]
[360161046,1746582667225,-198.361631,0.00019659,2]
[360161047,1746582667235,-192.682113,0.00019659,2]
[360161048,1746582667245,-192.682113,0.00019659,2]
[360161049,1746582667255,-7456.4959765,0.00019659,2]
[360161050,1746582667266,-151.0,0.00019659,2]
[360161051,1746582667277,-151.0,0.00019659,2]
[360161052,1746582667288,-111585.11906,0.00019659,2]
[360161053,1746582667297,-284.987628,0.00019659,2]
[360161054,1746582667306,-284.987628,0.00019659,2]
[360161055,1746582667317,-322.460176,0.00019659,2]
[360161056,1746582667326,-151.0,0.00019659,2]
[360161057,1746582667335,-322.460176,0.00019659,2]
[360161058,1746582667345,-114921.8657122,0.00019659,2]
[360161059,1746582667355,-297.102895,0.00019659,2]
[360161060,1746582667365,-297.102895,0.00019659,2]
[360161061,1746582667376,-450.0,0.00019664,2]
[360161062,1746582667386,-2061.48,0.00019664,2]
[360161063,1746582667395,-1574.72,0.00019664,2]
[360161064,1746582667405,-1226.66,0.00019664,2]
[360161065,1746582667414,-576.25,0.00019664,2]
[360161066,1746582667423,-515.77,0.00019664,2]
[360161067,1746582667432,-667.95,0.00019664,2]
[360161068,1746582667441,-677.89,0.00019664,2]
[360161069,1746582667451,-450.0,0.00019664,2]
[360161070,1746582667461,-482.43,0.00019664,2]
[360161071,1746582667470,-609.91,0.00019664,2]
[360161072,1746582667480,-1537.94,0.00019664,2]
[360161073,1746582667489,-1747.78,0.00019664,2]
[360161074,1746582667498,-1462.7,0.00019664,2]
[360161075,1746582667507,-477.17,0.00019664,2]
[360161076,1746582667516,-450.0,0.00019664,2]
[360161077,1746582667525,-450.0,0.00019664,2]
[360161078,1746582667535,-450.0,0.00019664,2]
[360161079,1746582667544,-748.28,0.00019664,2]
[360161080,1746582667553,-810.66,0.00019664,2]
[360161081,1746582667562,-963.33,0.00019664,2]
[360161082,1746582667704,-685.58,0.00019664,2]
[360161083,1746582667713,-450.0,0.00019664,2]
[360161084,1746582667722,-2217.43,0.00019664,2]
[360161085,1746582667731,-450.0,0.00019664,2]
[360161086,1746582667741,-487.85094758,0.00019664,2]
[360161087,1746582667751,-55423.39106738,0.00019665,2]
[360161088,1746582668031,-9236.34499827,0.00019665,2]
[360161089,1746582668042,-9704.32529222,0.00019665,2]
[360161090,1746582668416,-450.0,0.00019575,2]
[360161091,1746582668426,-155.961555,0.00019577,2]
[360161092,1746582668435,-1089.65993508,0.00019665,2]
[360161093,1746582668476,-2477.40099845,0.00019665,2]
[360161094,1746582668496,-253.37492,0.00019574,2]
[360161095,1746582668507,-196.62508,0.00019574,2]
[360161096,1746582668517,-3714.76019219,0.00019665,2]
[360161097,1746582718722,270.3237,0.00019475,2]
[360161098,1746582725006,3058.2917,0.00019477,2]
[360161099,1746582737097,1000.0,0.00019475,2]
[360161102,1746582772300,1522.32646875,0.00019475,2]
[360161103,1746582773635,901.66213395,0.00019476,2]
[360161104,1746582794249,562.63,0.00019477,2]
[360161105,1746582825504,250.0,0.00017,2]
[360161106,1746582827546,300.0,0.00019,2]
[360161107,1746582841584,153.70085451,0.00019475,3]
[360161108,1746582895824,174.62,0.00018603,2]
[360161109,1746582895931,174.62,0.00018649,2]
[360161110,1746582896140,174.62,0.00018696,2]
[360161111,1746582904287,223.68,0.00019,2]
[360161112,1746582930035,7983.7798,0.00019475,2]
[360161113,1746582943209,206.67138803,0.00019475,2]
[360161114,1746582964545,4582.5586,0.00019475,2]
[360161115,1746582989407,164.6,0.00018598,2]
[360161116,1746582989637,164.6,0.00027897,120]
[360161117,1746583023214,269.11,0.00018598,2]
[360161118,1746583086663,600.0,0.000194,7]
[360161119,1746583089009,1200.0,0.000195,7]
[360161120,1746583157695,413.703523,0.0003013,120]
[360161121,1746583159889,1170.25131871,0.00019475,2]
[360161122,1746583164896,1170.25131862,0.000195,2]
[360161123,1746583167472,224.04611128,0.00019476,2]
[360161124,1746583193639,1489.98274557,0.00019275,2]
[360161125,1746583194858,2979.92,0.00019276,2]
[360161126,1746583196200,1489.96,0.00019281,2]
[360161127,1746583197518,1489.96,0.00019358,2]
[360161128,1746583198846,1489.96,0.00019364,2]
[360161129,1746583200179,1489.96,0.00019365,2]
[360161130,1746583216863,1839.4,0.00019474,2]
[360161131,1746583219130,26647.90111812,0.00019238,2]
[360161132,1746583219158,162511.61950245,0.00019238,2]
[360161133,1746583219449,189159.52062057,0.000193,2]
[360161134,1746583233601,49213.94110165,0.00019281,2]
[360161135,1746583233962,49213.94110165,0.00019256,2]
[360161136,1746583247000,493.60373529,0.00019293,2]
[360161137,1746583247290,493.60373529,0.00019281,2]
[360161138,1746583254282,174.62876857,0.000195,2]
[360161139,1746583254578,174.62876857,0.000195,2]
[360161140,1746583254607,253.49942351,0.000195,2]
[360161141,1746583254654,253.49942351,0.000195,2]
[360161142,1746583260796,2127.65019307,0.00019231,2]
[360161143,1746583261117,2127.65019307,0.00019218,2]
[360161144,1746583277299,2280.8042,0.00019475,2]
[360161145,1746583279517,13240.79197984,0.00019276,2]
[360161146,1746583279806,13240.79197984,0.00019266,2]
[360161147,1746583293914,186.0042492,0.00019475,2]
[360161148,1746583294760,1122.51004376,0.00019262,2]
[360161149,1746583295130,1122.51004376,0.00019203,2]
[360161150,1746583309464,2607.39023976,0.00019199,2]
[360161151,1746583310100,2607.39023976,0.00019275,2]
[360161152,1746583311504,654.8,0.00016651,2]
[360161153,1746583311757,654.8,0.00018915,2]
[360161154,1746583322729,1866.76391426,0.00019474,2]
[360161155,1746583327735,1866.76391422,0.00019485,2]
[360161156,1746583332725,1866.76391422,0.00019496,2]
[360161157,1746583367503,588.84731033,0.00019474,2]
[360161158,1746583377917,529.63167931,0.00019224,2]
[360161159,1746583378201,529.63167931,0.00019222,2]
[360161160,1746583421646,288.78970374,0.00019476,2]
[360161161,1746583492034,3127.80954022,0.00030137,120]
[360161162,1746583492692,167.80937792,0.000195,2]
[360161163,1746583492719,211.24951959,0.000195,2]
[360161164,1746583492750,151.0,0.000195,2]
[360161165,1746583493868,151.0,0.000195,2]
[360161166,1746583493896,16.80937792,0.000195,2]
[360161167,1746583493919,268.76254353,0.000195,2]
[360161168,1746583494872,271.4990392,0.000195,2]
[360161169,1746583506533,431.90963436,0.000195,2]
[360161170,1746583530068,23900.0,0.00018574,2]
[360161171,1746583541312,936.20105495,0.00019474,2]
[360161172,1746583546322,936.20105489,0.00019499,2]
[360161173,1746583585177,1060.5826045,0.0003,30]
[360161174,1746583621788,1000.0,0.00018568,2]
[360161175,1746583625008,500.0,0.000194,7]
[360161176,1746583627175,1000.0,0.000195,7]
[360161177,1746583641665,250.0,0.00018568,2]
[360161178,1746583655282,167.40382428,0.00019475,2]
[360161179,1746583709762,150.0,0.000195,2]
[360161180,1746583734309,1586.03,0.0003,30]
[360161181,1746583789342,2878.92,0.00019274,2]
[360161182,1746583790361,234.96823994,0.00019275,2]
[360161183,1746583790382,5522.85176006,0.00019275,2]
[360161184,1746583791699,2878.91,0.00019276,2]
[360161185,1746583793545,2878.91,0.00019341,2]
[360161186,1746583794530,2878.91,0.00019358,2]
[360161187,1746583795889,2878.91,0.00019364,2]
[360161188,1746583799168,2500.0,0.00019474,2]
[360161196,1746583831725,-578.86841799,0.00019505,2]
[360161197,1746583831738,-621.13158201,0.00019505,2]
[360161198,1746583831747,-300.0,0.00019505,2]
[360161199,1746583831757,-250.0,0.00019506,2]
[360161200,1746583831767,-1209.0879477,0.00019506,2]
[360161201,1746583831778,-19009.52976661,0.00019506,2]
[360161202,1746583831789,-55115.22897636,0.00019506,2]
[360161203,1746583831799,-500.0,0.00019507,2]
[360161204,1746583831808,-151.0,0.00019507,2]
[360161205,1746583831818,-305.3380611,0.00019507,2]
[360161206,1746583831827,-300.0,0.00019512,2]
[360161207,1746583831837,-500.0,0.00019513,2]
[360161208,1746583831846,-2000.0,0.00019513,2]
[360161209,1746583831856,-500.0,0.00019513,2]
[360161210,1746583831866,-200.0,0.00019513,2]
[360161211,1746583831875,-936.20105489,0.00019524,2]
[360161212,1746583831884,-936.20105489,0.00019549,2]
[360161213,1746583831894,-207.4,0.00019552,2]
[360161214,1746583831904,-1000.0,0.00019563,2]
[360161215,1746583831913,-151.0,0.00019563,2]
[360161216,1746583831923,-151.0,0.00019563,2]
[360161217,1746583831932,-155.0,0.00019563,2]
[360161218,1746583831941,-668.65185757,0.00019563,2]
[360161219,1746583831951,-151.0,0.00019563,2]
[360161220,1746583831960,-151.0,0.00019563,2]
[360161221,1746583831970,-20656.13908161,0.00019564,2]
[360161222,1746583831979,-195.21,0.00019564,2]
[360161223,1746583831989,-195.21,0.00019564,2]
[360161224,1746583831998,-195.21,0.00019564,2]
[360161225,1746583832007,-195.21,0.00019564,2]
[360161226,1746583832017,-195.21,0.00019564,2]
[360161227,1746583832026,-195.21,0.00019564,2]
[360161228,1746583832035,-195.21,0.00019564,2]
[360161229,1746583832044,-1159.73,0.00019564,2]
[360161230,1746583832053,-4698.741,0.00019565,2]
[360161231,1746583832063,-182.071,0.00019565,2]
[360161232,1746583832073,-913.23462738,0.00019567,2]
[360161233,1746583832082,-200.0,0.00019569,2]
[360161234,1746583832092,-200.0,0.00019573,2]
[360161235,1746583832101,-450.0,0.00019573,2]
[360161236,1746583832110,-288.82875552,0.00019573,2]
[360161237,1746583832121,-562.9750115,0.00019573,2]
[360161238,1746583832130,-450.0,0.00019573,2]
[360161239,1746583832140,-541.70665644,0.00019573,2]
[360161240,1746583832149,-450.0,0.00019573,2]
[360161242,1746583832158,-450.0,0.00019573,2]
[360161244,1746583832168,-197.08503309,0.00019573,2]
[360161246,1746583832177,-450.0,0.00019573,2]
[360161248,1746583832186,-495.97722242,0.00019573,2]
[360161250,1746583832195,-450.73191106,0.00019573,2]
[360161252,1746583832204,-450.0,0.00019573,2]
[360161254,1746583832214,-372.31933378,0.00019573,2]
[360161256,1746583832223,-470.0,0.00019573,2]
[360161257,1746583832233,-515.64438941,0.00019573,2]
[360161259,1746583832241,-500.0,0.00019573,2]
[360161260,1746583832250,-487.18719285,0.00019573,2]
[360161262,1746583832261,-450.0,0.00019573,2]
[360161263,1746583832270,-466.34882532,0.00019573,2]
[360161264,1746583832279,-508.7144761,0.00019573,2]
[360161265,1746583832289,-450.0,0.00019573,2]
[360161266,1746583832298,-458.98302337,0.00019573,2]
[360161267,1746583832308,-450.0,0.00019573,2]
[360161268,1746583832318,-499.83897007,0.00019573,2]
[360161269,1746583832327,-157.869387,0.00019573,2]
[360161270,1746583832336,-417.64114773,0.00019573,2]
[360161271,1746583832346,-504.40454171,0.00019573,2]
[360161272,1746583832355,-340.51161413,0.00019573,2]
[360161273,1746583832365,-450.0,0.00019573,2]
[360161274,1746583832374,-656.404264,0.00019573,2]
[360161275,1746583832384,-518.99946017,0.00019573,2]
[360161276,1746583832394,-500.72378076,0.00019573,2]
[360161277,1746583832403,-226.1654275,0.00019573,2]
[360161278,1746583832412,-164.40799904,0.00019573,2]
[360161279,1746583832421,-497.01791057,0.00019573,2]
[360161280,1746583832430,-495.0137922,0.00019573,2]
[360161281,1746583832440,-520.20262656,0.00019573,2]
[360161282,1746583832449,-176.424439,0.00019573,2]
[360161283,1746583832459,-528.11,0.00019573,2]
[360161284,1746583832468,-338.8977231,0.00019573,2]
[360161285,1746583832477,-450.0,0.00019573,2]
[360161286,1746583832486,-181.18797632,0.00019573,2]
[360161287,1746583832496,-1643.83,0.00019573,2]
[360161288,1746583832506,-1074.25,0.00019573,2]
[360161289,1746583832515,-450.0,0.00019573,2]
[360161290,1746583832525,-488.83845249,0.00019573,2]
[360161291,1746583832533,-450.0,0.00019573,2]
[360161292,1746583832543,-450.0,0.00019573,2]
[360161293,1746583832552,-450.0,0.00019573,2]
[360161294,1746583832561,-450.0,0.00019573,2]
[360161295,1746583832570,-824.37,0.00019573,2]
[360161296,1746583832580,-477.86392376,0.00019573,2]
[360161297,1746583832589,-450.0,0.00019573,2]
[360161298,1746583832598,-487.77783203,0.00019573,2]
[360161299,1746583832607,-450.0,0.00019573,2]
[360161300,1746583832617,-450.0,0.00019573,2]
[360161301,1746583832626,-483.82,0.00019573,2]
[360161302,1746583832635,-450.0,0.00019573,2]
[360161303,1746583832648,-468.35,0.00019573,2]
[360161304,1746583832657,-450.0,0.00019573,2]
[360161305,1746583832667,-450.0,0.00019573,2]
[360161306,1746583832677,-450.0,0.00019573,2]
[360161307,1746583832686,-500.0,0.00019573,2]
[360161308,1746583832695,-450.0,0.00019573,2]
[360161309,1746583832704,-169.62495743,0.00019573,2]
[360161310,1746583832714,-450.0,0.00019573,2]
[360161311,1746583832724,-500.0,0.00019573,2]
[360161312,1746583832733,-500.0,0.00019573,2]
[360161313,1746583832743,-500.0,0.00019573,2]
[360161314,1746583832753,-500.0,0.00019573,2]
[360161315,1746583832764,-182.24126288,0.00019573,2]
[360161316,1746583832773,-500.0,0.00019573,2]
[360161317,1746583832782,-500.0,0.00019573,2]
[360161318,1746583832791,-450.0,0.00019573,2]
[360161319,1746583832801,-344.392228,0.00019573,2]
[360161320,1746583832810,-450.0,0.00019573,2]
[360161321,1746583832820,-707.72,0.00019573,2]
[360161322,1746583832829,-484.93719049,0.00019573,2]
[360161323,1746583832840,-400.0,0.00019573,2]
[360161324,1746583832849,-450.0,0.00019573,2]
[360161325,1746583832858,-492.58696448,0.00019573,2]
[360161326,1746583832867,-450.0,0.00019573,2]
[360161327,1746583832876,-476.92221656,0.00019573,2]
[360161328,1746583832886,-450.0,0.00019573,2]
[360161329,1746583832895,-392.84366267,0.00019573,2]
[360161330,1746583832904,-1210.4,0.00019573,2]
[360161331,1746583832913,-1264.26,0.00019573,2]
[360161332,1746583832922,-1249.98,0.00019573,2]
[360161333,1746583832931,-450.0,0.00019573,2]
[360161334,1746583832941,-450.0,0.00019573,2]
[360161335,1746583832950,-450.0,0.00019573,2]
[360161336,1746583832959,-1130.31,0.00019573,2]
[360161337,1746583832968,-450.0,0.00019573,2]
[360161338,1746583832977,-450.0,0.00019573,2]
[360161339,1746583832986,-450.0,0.00019573,2]
[360161340,1746583832995,-450.0,0.00019573,2]
[360161341,1746583833004,-450.0,0.00019573,2]
[360161342,1746583833014,-450.0,0.00019573,2]
[360161343,1746583833023,-521.08,0.00019573,2]
[360161344,1746583833032,-450.0,0.00019573,2]
[360161345,1746583833042,-553.02,0.00019573,2]
[360161346,1746583833052,-665.6,0.00019573,2]
[360161347,1746583833061,-450.0,0.00019573,2]
[360161348,1746583833071,-450.0,0.00019573,2]
[360161349,1746583833081,-450.0,0.00019573,2]
[360161350,1746583833090,-450.0,0.00019573,2]
[360161351,1746583833100,-450.0,0.00019573,2]
[360161352,1746583833109,-553.4,0.00019573,2]
[360161353,1746583833119,-451.58585412,0.00019573,2]
[360161354,1746583833129,-450.0,0.00019573,2]
[360161355,1746583833140,-450.0,0.00019573,2]